{"text_format":"3","workbook":"xlsx","n_sheets":1,"sheets":["PRICING SCHEDULE_01 New Equipme"],"not_rendered":{"images":1,"defined_names":2},"read":"whole","date_system":"1900"}

{"sheet":"PRICING SCHEDULE_01 New Equipme","index":0,"n_rows":142,"n_cols":23,"rows_kept":142,"merged":[[11,2,11,3],[12,2,12,3],[12,5,14,5],[13,2,13,3],[14,2,14,3],[16,4,16,6],[16,7,16,9],[16,10,16,12],[16,13,16,15],[16,16,16,18],[138,1,141,1],[138,2,138,3],[138,4,138,5],[140,2,140,3],[140,4,140,5],[141,2,141,3],[141,4,141,5]]}
[null,"SUPPLY CHAIN MANAGEMENT"]
[null,"Pricing schedule_01: NEW EQUIPMENT"]
["RFx No","RFB 2748-2023"]
["RFx Title","Supply, Install and Configuration of DELL EMC VXRail equipment, including VMware licensing and Support for 5 years. Also, DELL EMC VXRail standard support for existing DELL EMC VXRail equipment in the SITA client’s offices (Pretoria, and Cape Town) for 36 months."]
["Bidder Name "]
[]
["1. INSTRUCTION FOR COMPLETING THE PRICING SCHEDULE"]
["(a)  Bidder must complete/enter YELLOW cells only"]
["(b)  Unit and Line prices must be VAT EXCLUSIVE and in South African Rand (ZAR) currency."]
["(c) The price must include all cost to deliver the goods or render the service, including all applicable taxes, duty fees, logistics/delivery, storage, labour, overtime and subsistance and travel"]
["(d)  Prices that are dependent on Rate of Exchange (ROE) must use ROE indicated below, then enter in Column \"Forex %\" the percentage of the price that is ROE dependent (0% means the price is not ROE dependent)"]
[null,"Foreign currency","South African Rand (ZAR) exchange rate "]
[null,"1 US Dollar",{"v":18.15,"d":"R18.15"},null,null,"Mark with an X, which ROE is applicable"]
[null,"1 Euro",{"v":19.92,"d":"R19.92"}]
[null,"1 Pound (UK)",{"v":22.49,"d":"R22.49"}]
[]
[{"$nulls":4},"YEAR 1",null,null,"YEAR 2",null,null,"YEAR 3",null,null,"YEAR 4",null,null,"YEAR 5",null,null,"TOTAL"]
["Item No","Goods/Service description","Unit of measure","Forex %","Qty ","Unit Price \n(Excl VAT)","Line Price Y1","Qty","Unit Price \n(Excl VAT)","Line Price Y2","Qty","Unit Price \n(Excl VAT)","Line Price Y3","Qty","Unit Price \n(Excl VAT)","Line Price Y4","Qty","Unit Price \n(Excl VAT)","Line Price Y5","Line Price Term \n(Excl VAT)","Forex Price portion","BRAND / MODEL","Price clarification comment"]
[null,"[GOODS/SERVICE PACKAGE 1]"]
[1,"Dell EMC VxRail P670F, All Flash ","each ",{"v":0,"d":"0%"},4,null,{"$f":"F20*E20","v":0},0,null,{"$f":"I20*H20","v":0},null,null,{"$f":"L20*K20","v":0},null,null,{"$f":"O20*N20","v":0},null,null,{"$f":"R20*Q20","v":0},{"$f":"M20+J20+G20+P20+S20","v":0},{"$f":"D20*T20","v":0}]
[null,"***Each unit consists of the following components ***"]
["1.1","VxRail P670F Branding ","each ",null,1,null,null,0,null,null,0]
["1.2","PowerEdge R750 Motherboard, Barlow Pass Enabled, with Broadcom 5720 Dual Port 1Gb On-Board LOM 1","each ",null,1,null,null,0,null,null,0]
["1.3","Intel Xeon Gold 5317 3G, 12C/24T, 11.2GT/s, 18M Cache, Turbo, HT (150W) DDR4-2933 ","each ",null,2,null,null,0,null,null,0]
["1.4","No Transformational License Agreement ","each ",null,1,null,null,0,null,null,0]
["1.5","Additional Processor Selected ","each ",null,1,null,null,0,null,null,0]
["1.6","SAS/SATA/NVMe Capable Backplane ","each ",null,1,null,null,0,null,null,0]
["1.7","2.5 Chassis ","each ",null,1,null,null,0,null,null,0]
["1.8","iDRAC Group Manager, Disabled ","each ",null,1,null,null,0,null,null,0]
["1.9","iDRAC,Legacy Password ","each ",null,1,null,null,0,null,null,0]
["1.10","DHCP with Zero Touch Configuration ","each ",null,1,null,null,0,null,null,0]
["1.11","No GPU Enablement ","each ",null,1,null,null,0,null,null,0]
["1.12","4x2.5 Rear Storage ","each ",null,1,null,null,0,null,null,0]
["1.13","2.5\" Chassis with up to 24 HDDs (SAS/SATA/NVMe), 4x2.5\" Rear HDDs (SAS/SATA) ","each ",null,1]
["1.14","VxRail 2U Bezel V2 ","each ",null,1,null,null,0,null,null,0]
["1.15","VxRail P670F, Riser Config 5, 2A+4B, 2x8FH, 2x16LP ","each ",null,1,null,null,0,null,null,0]
["1.16","P670F Luggage Tag ","each ",null,1,null,null,0,null,null,0]
["1.17","No Quick Sync ","each ",null,1,null,null,0,null,null,0]
["1.18","Memory Mode Intel Optane Persistent Memory 200 series ","each ",null,1,null,null,0,null,null,0]
["1.19","32GB RDIMM, 3200MT/s, Dual Rank 16Gb BASE x8 ","each ",null,8,null,null,0,null,null,0]
["1.20","128GB Optane Persistent Memory 200 Series, 3200MT/s ","each ",null,8,null,null,0,null,null,0]
["1.21","Performance Optimized ","each ",null,1,null,null,0,null,null,0]
["1.22","iDRAC9, Enterprise 15G ","each ",null,1,null,null,0,null,null,0]
["1.23","800GB SSD SAS ISE Write Intensive 12Gbps 512e 2.5in Hot-plug AG Drive, 10 DWPD, ","each ",null,4,null,null,0,null,null,0]
["1.24","3.84TB SSD vSAS Mixed Use 12Gbps 512e 2.5in Hot-Plug ,AG Drive SED, 3DWPD, ","each ",null,20,null,null,0,null,null,0]
["1.25","BOSS-S2 controller card + with 2 M.2 480GB (RAID 1) ","each ",null,1,null,null,0,null,null,0]
["1.26","Dell HBA355i Controller Front ",null,null,1]
["1.27","Heatsink for 2 CPU configuration (CPU less than 165W) ","each ",null,1,null,null,0,null,null,0]
["1.28","Dual, Hot-Plug,Power Supply Redundant (1+1), 1400W, Mixed Mode ","each ",null,1,null,null,0,null,null,0]
["1.29","C13 to C14, PDU Style, 10 AMP, 6.5 Feet (2m), Power Cord ","each ",null,2,null,null,0,null,null,0]
["1.30","Trusted Platform Module 2.0 V3 ","each ",null,1,null,null,0,null,null,0]
["1.31","BOSS Cables and Bracket for R750 (4x2.5\" Rear) ","each ",null,1,null,null,0,null,null,0]
["1.32","PowerEdge R750 Shipping Material ","each ",null,1,null,null,0,null,null,0]
["1.33","Intel E810-XXV Dual Port 10/25GbE SFP28, OCP NIC 3.0 ","each ",null,1,null,null,0,null,null,0]
["1.34","Intel E810-XXV Dual Port 10/25GbE SFP28 Adapter, PCIe Full Height ","each ",null,1,null,null,0,null,null,0]
["1.35","Fan Foam, HDD 2U ","each ",null,1,null,null,0,null,null,0]
["1.36","Front PERC Mechanical Parts, for 2.5\" x24 SAS/SATA Chassis ","each ",null,1,null,null,0,null,null,0]
["1.37","Very High Performance Fan x6 ","each ",null,1,null,null,0,null,null,0]
["1.38","ReadyRails Sliding Rails ","each ",null,1,null,null,0,null,null,0]
["1.39","Cable Management Arm, 2U ","each ",null,1]
["1.40","C43, No RAID, VxRail PV670F/S670 ","each ",null,1,null,null,0,null,null,0]
["1.41","VxRail E660/F/N PV670F Firmware Lock","each ",null,1,null,null,0,null,null,0]
["1.42","VxRail Software 7.0.380 Factory Install ","each ",null,1,null,null,0,null,null,0]
["1.43","VxRail HCI System Software, EP ","each ",null,2,null,null,0,null,null,0]
["1.44","VxRail HCI System Software, Capacity Drive 3.84TB,VSAS,MU","each ",null,20,null,null,0,null,null,0]
["1.45","VxRail HCI System Software Memory, 32GB ","each ",null,16,null,null,0,null,null,0]
["1.46","VxRail HCI System Software Memory, 128GB Optane Pmem ","each ",null,8,null,null,0,null,null,0]
["1.47","PV670/S670 Shipping, EMEA1 ","each ",null,1,null,null,0,null,null,0]
["1.48","No Systems Documentation, No OpenManage DVD Kit ","each ",null,1,null,null,0,null,null,0]
["1.49","Parts Only Warranty 36 Months, 36 Month(s) ","each ",null,1,null,null,0,null,null,0]
["1.50","ProSupport and 4Hr Mission Critical Onsite Service VSAN Initial, 36 Month(s)","each ",null,1,null,null,0,null,null,0]
[null,"ProSupport and 4Hr Mission Critical Onsite Service VSAN Extension, 24 Month(s)","each ",null,1,null,null,0,null,null,0]
[]
[2,"VxRail VMWare Software"]
["2.1","VMware vSphere Enterprise Plus (Per CPU)","each ",{"v":0,"d":"0%"},8,0,{"$f":"F75*E75","v":0},0,0,{"$f":"I75*H75","v":0},0,0,{"$f":"L75*K75","v":0},{"$nulls":5},{"$f":"R75*Q75","v":0},{"$f":"M75+J75+G75+P75+S75","v":0},{"$f":"D75*T75","v":0}]
[null,"***Each unit consists of the following components ***"]
["2.1.1","VMware vSphere 8 Enterprise Plus for 1 CPU, (max 32 cores/CPU socket), 5YR VMware SNS","each "]
["2.1.2","ProSupport for Software, Dell VMware, 5 Years","each "]
[]
["2.2","VMware vCenter Server Standard for vSphere (Per Instance)","each ",{"v":0,"d":"0%"},1,0,0,0,0,0,0,0,0,{"$nulls":5},{"$f":"R80*Q80","v":0},{"$f":"M80+J80+G80+P80+S80","v":0},{"$f":"D80*T80","v":0}]
[null,"***Each unit consists of the following components ***"]
["2.2.1","VMware vCenter Server 8 Standard for vSphere 8 (Per Instance), 5YR VMware SNS","each "]
["2.2.2","ProSupport for Software, Dell VMware, 5 Years","each "]
["2.3","VMware vRealize Operations 8.0 Standard (Per CPU)","each ",{"v":0,"d":"0%"},8,0,0,0,0,0,0,0,{"$f":"L84*K84","v":0},{"$nulls":5},{"$f":"R84*Q84","v":0},{"$f":"M84+J84+G84+P84+S84","v":0},{"$f":"D84*T84","v":0}]
[null,"***Each unit consists of the following components ***"]
["2.3.1","VMware vRealize Operations 8 Standard, 1 CPU (max 32 cores/CPU socket), 5YR VMware SNS","each "]
["2.3.2","ProSupport for Software, Dell VMware, 5 Years","each "]
[]
["2.4","VMware vSAN Enterprise Plus (Per CPU)","each ",{"v":0,"d":"0%"},8,null,{"$f":"F89*E89","v":0},0,0,{"$f":"I89*H89","v":0},0,0,{"$f":"L89*K89","v":0},{"$nulls":5},{"$f":"R89*Q89","v":0},{"$f":"M89+J89+G89+P89+S89","v":0},{"$f":"D89*T89","v":0}]
[null,"***Each unit consists of the following components ***"]
["2.4.1","VMware vSAN 8 Enterprise Plus, 1 CPU (max 32 cores/CPU socket),5YR VMware SNS","each"]
["2.4.2","ProSupport for Software, Dell VMware, 5 Years","each"]
[]
[3,"Recoverpoint for Virtual Machines","each ",{"v":0,"d":"0%"},4,0,0,0,0,0,0,0,0,{"$nulls":5},{"$f":"R94*Q94","v":0},{"$f":"M94+J94+G94+P94+S94","v":0},{"$f":"D94*T94","v":0}]
[null,"***Each unit consists of the following components ***"]
["3.1","HCIA RecoverPoint for VMs for 1 node ","each ",null,1,null,null,0,null,null,0]
["3.2","ProSupport Plus Mission Critical RecoverPoint for VMs Software Support-Maintanance, 60 Month(s) ","each ",null,1,null,null,0,null,null,0]
[]
[4,"Dell EMC S5224F-ON Networking Switch","each ",{"v":0,"d":"0%"},2,0,0,0,0,0,0,0,0,{"$nulls":5},{"$f":"R99*Q99","v":0},{"$f":"M99+J99+G99+P99+S99","v":0},{"$f":"D99*T99","v":0}]
[null,"***Each unit consists of the following components ***"]
["4.1","Dell Networking Power Supply, DC, 1100W, IO to PSU Airflow, for select switches Quantity 2","each ",null,1,null,null,0,null,null,0]
["4.2","C13 Power Cord 220V 1.8M South Africa","each ",null,2,null,null,0,null,null,0]
["4.3","Dell Networking Cable, 100GbE QSFP28 to QSFP28, Passive Copper Direct Attach Cable, 0.5 Meter","each ",null,1,null,null,0,null,null,0]
["4.4","Dell Networking, Cable, SFP28 to SFP28, 25GbE, Passive Copper Twinax Direct Attach Cable, 3 Meter","each ",null,10,null,null,0,null,null,0]
["4.5","Dell Networking Cable, OM4 LC/LC Fiber Cable, (Optics required), 30 Meter","each ",null,2,null,null,0,null,null,0]
["4.6","Dell Networking, Transceiver, SFP+, 10GbE, SR, 850nm Wavelength, 300m Reach","each ",null,4,null,null,0,null,null,0]
["4.7","OS10 Enterprise, S5224F-ON ","each ",null,1,null,null,0,null,null,0]
["4.8","OS10 SmartFabric Services ","each ",null,1,null,null,0,null,null,0]
["4.9","5 Years ProSupport Plus OS10 Enterprise Software Support-Maintenance ","each ",null,1,null,null,0,null,null,0]
["4.10","ProDeploy Plus Dell Networking S Series 5XXX Switch - Deployment ","each ",null,1,null,null,0,null,null,0]
["4.11","ProDeploy Plus Dell Networking S Series 5XXX Switch - Deployment Verification ","each ",null,1,null,null,0,null,null,0]
["4.12","Base Warranty ","each ",null,1,null,null,0,null,null,0]
["4.13","1Yr Return to Depot - Minimum Warranty ","each ",null,1,null,null,0,null,null,0]
["4.14","90 Day SW Bug Fixes Support Media Replacement ","each ",null,1,null,null,0,null,null,0]
["4.15","5Yr ProSupport and 4Hr Mission Critical ","each ",null,1,null,null,0,null,null,0]
[]
[5,"Dell EMC PowerSwitch N3224","each ",{"v":0,"d":"0%"},1,0,{"$f":"F117*E117","v":0},0,0,{"$f":"I117*H117","v":0},0,0,{"$f":"L117*K117","v":0},{"$nulls":5},{"$f":"R117*Q117","v":0},{"$f":"M117+J117+G117+P117+S117","v":0},{"$f":"D117*T117","v":0}]
[null,"***Each unit consists of the following components ***"]
["5.1","User Documentation EMEA1 (English-US/German/Spanish/French/Hebrew/Russian/Serbian Croatian/Turkey) ","each ",null,1,null,null,0,null,null,0]
["5.2","Dell Networking, Transceiver, SFP+, 10GbE, SR, 850nm Wavelength, 300m Reach ","each ",null,2,null,null,0,null,null,0]
["5.3","Power Cord, PDU (Rack) ","each ",null,1,null,null,0,null,null,0]
["5.4","Dell Networking Cable, OM4 LC/LC Fiber Cable, (Optics required), 10 Meter ","each ",null,2,null,null,0,null,null,0]
["5.5","Partner Operations Support ","each ",null,1,null,null,0,null,null,0]
["5.6","Lifetime Limited Hardware Warranty - Basic Hardware Service Parts Only ","each ",null,1,null,null,0,null,null,0]
["5.7","5Y ProSupport and 4H Mission Critical Upgrade ","each ",null,1,null,null,0,null,null,0]
[]
[6,"Implementation and configurations"]
["6.1","Implement and configure new hyperconverged cluster in primary site","each ",{"v":0,"d":"0%"},1,0,{"$f":"F128*E128","v":0},0,0,{"$f":"I128*H128","v":0},0,0,{"$f":"L128*K128","v":0},null,null,{"$f":"O128*N128","v":0},null,null,{"$f":"R128*Q128","v":0},{"$f":"M128+J128+G128+P128+S128","v":0},{"$f":"D128*T128","v":0}]
["6.2","Migration of data form old to new hyperconverged cluster (VxRail)","each ",{"v":0,"d":"0%"},1,0,{"$f":"F129*E129","v":0},0,0,{"$f":"I129*H129","v":0},0,0,{"$f":"L129*K129","v":0},null,null,0,null,null,0,0,0]
["6.3","Factory reset old hyperconverged cluster (VxRail)","each ",{"v":0,"d":"0%"},1,0,0,0,0,0,0,0,0,null,null,0,null,null,0,0,0]
["6.4","Transportation of the old VxRail equipment  to the disaster recovery site. (Transportation of the equipment must include insurance with security escort to ensure the safety of the equipment and data)","each ",{"v":0,"d":"0%"},1,0,0,0,0,0,0,0,0,null,null,0,null,null,0,0,0]
["6.5","Old hyperconverged cluster (VxRail equipment) to be implemented and configured as disaster recovery site including data replication","each ",{"v":0,"d":"0%"},1,0,0,0,0,0,0,0,0,null,null,0,null,null,0,0,0]
[]
[null,"TOTAL BID PRICE  (EXCL VAT)",{"$nulls":4},{"$f":"SUM(G20:G133)","v":0},null,null,{"$f":"SUM(J20:J133)","v":0},null,null,{"$f":"SUM(M20:M133)","v":0},{"$nulls":6},{"$f":"SUM(T20:T133)","v":0},{"$f":"SUBTOTAL(9,U19:U133)","v":0}]
[null,"VAT (@15%)",{"$nulls":4},{"$f":"G134*0.15","v":0},null,null,{"$f":"J134*0.15","v":0},null,null,{"$f":"M134*0.15","v":0},{"$nulls":6},{"$f":"T134*0.15","v":0}]
[null,"TOTAL  BID PRICE (INCL VAT)",{"$nulls":4},{"$f":"G134+G135","v":0},null,null,{"$f":"J134+J135","v":0},null,null,{"$f":"M134+M135","v":0},{"$nulls":6},{"$f":"T134+T135","v":0}]
[]
[]
[null,"I, the bidder, confirm that the price(s) and rate(s) quoted cover all the goods and/or works specified in the bidding documents; that the price(s) or rate(s) cover all my obligations and I accept that any mistakes regarding price(s), rate(s) or calculations will be at my own risk.\n[Note: First convert to PDF, then add signature]"]
[null,null,"Name",null,"Capacity"]
[]
[null,null,"Signature (above)",null,"Date"]